lending/lending_fUSD_20240401
["ID","MTS","AMOUNT","RATE_DAILY","PERIOD"]
[321198139,1711975836020,-408.0,0.00056885,25]
[321198140,1711975836029,-151.0,0.00056885,120]
[321198141,1711975836038,-151.0,0.00056885,120]
[321198142,1711975836047,-151.0,0.00056885,120]
[321198143,1711975836057,-151.0,0.00056885,120]
[321198144,1711975836067,-151.0,0.00056885,30]
[321198145,1711975836076,-151.0,0.00056885,30]
[321198146,1711975836085,-157.183036,0.00056885,120]
[321198147,1711975836094,-157.183036,0.00056885,120]
[321198148,1711975836103,-214.859024,0.00056885,120]
[321198149,1711975836112,-214.859024,0.00056885,120]
[321198150,1711975836121,-150.0,0.00056887,14]
[321198151,1711975836130,-1031.39457924,0.00056888,4]
[321198152,1711975836140,-500.0,0.00056888,2]
[321198153,1711975836149,-151.0,0.00056889,120]
[321198154,1711975836158,-154.625424,0.00056889,120]
[321198155,1711975836169,-151.0,0.00056889,120]
[321198156,1711975836178,-151.0,0.00056889,60]
[321198157,1711975836187,-151.0,0.00056889,120]
[321198158,1711975836197,-151.0,0.00056889,120]
[321198159,1711975836206,-73043.0682333,0.00056889,2]
[321198160,1711975836216,-24284.611428,0.00056889,2]
[321198161,1711975836225,-73043.0682333,0.00056889,2]
[321198162,1711975836235,-556.667952,0.00056889,120]
[321198163,1711975836244,-556.667952,0.00056889,120]
[321198164,1711975836253,-9265.7971,0.00056889,2]
[321198165,1711975836262,-151.0,0.00056889,120]
[321198166,1711975836272,-151.0,0.00056889,120]
[321198167,1711975836281,-150.0,0.00056891,14]
[321198168,1711975836290,-150.5,0.00056894,15]
[321198169,1711975836305,-556.667952,0.00056894,120]
[321198170,1711975836315,-556.667952,0.00056894,120]
[321198171,1711975836325,-720.21333362,0.00056896,2]
[321198172,1711975836334,-186.2786766,0.000569,30]
[321198173,1711975836344,-150.0,0.00056901,14]
[321198174,1711975836354,-150.5,0.00056904,15]
[321198175,1711975836364,-158.96,0.00056914,30]
[321198176,1711975836373,-150.5,0.00056914,15]
[321198177,1711975836383,-158.96,0.00056914,30]
[321198178,1711975836392,-158.96,0.00056914,30]
[321198179,1711975836402,-158.96,0.00056914,30]
[321198180,1711975836411,-151.0,0.00056916,120]
[321198181,1711975836420,-151.0,0.00056916,120]
[321198182,1711975836429,-151.0,0.00056916,30]
[321198183,1711975836438,-151.0,0.00056916,30]
[321198184,1711975836448,-157.183036,0.00056916,120]
[321198185,1711975836457,-157.183036,0.00056916,120]
[321198186,1711975836467,-214.859024,0.00056916,120]
[321198187,1711975836477,-214.859024,0.00056916,120]
[321198188,1711975836486,-151.0,0.00056916,60]
[321198189,1711975836495,-151.0,0.00056916,120]
[321198190,1711975836505,-158.033325,0.00056916,120]
[321198191,1711975836515,-14122.8511628,0.00056916,2]
[321198192,1711975836524,-6272.3961094,0.00056916,2]
[321198193,1711975836533,-250.88996858,0.00056918,2]
[321198194,1711975836543,-250.88996858,0.00056919,2]
[321198195,1711975836553,-720.21333362,0.0005692,2]
[321198196,1711975836564,-32009.82465752,0.00056921,2]
[321198197,1711975836574,-560.19227633,0.00056922,4]
[321198198,1711975836583,-300.0,0.00056923,2]
[321198199,1711975836593,-300.0,0.00056923,2]
[321198200,1711975836602,-300.0,0.00056923,2]
[321198201,1711975836612,-300.0,0.00056923,2]
[321198202,1711975836621,-300.0,0.00056923,2]
[321198203,1711975836630,-300.0,0.00056923,2]
[321198204,1711975836639,-300.0,0.00056923,2]
[321198205,1711975836648,-300.0,0.00056923,2]
[321198206,1711975836657,-300.0,0.00056923,2]
[321198207,1711975836666,-303.5612234,0.00056923,2]
[321198208,1711975836675,-1000.0,0.00056923,2]
[321198209,1711975836683,-1000.0,0.00056923,2]
[321198210,1711975836692,-1000.0,0.00056923,2]
[321198211,1711975836702,-1000.0,0.00056923,2]
[321198212,1711975836711,-1000.0,0.00056923,2]
[321198213,1711975836720,-1000.0,0.00056923,2]
[321198214,1711975836729,-1000.0,0.00056923,2]
[321198215,1711975836738,-1000.0,0.00056923,2]
[321198216,1711975836749,-1000.0,0.00056923,2]
[321198217,1711975836759,-1000.0,0.00056923,2]
[321198218,1711975836769,-671.46810937,0.00056923,2]
[321198231,1711975837866,-490.22963121,0.00047976,4]
[321198232,1711975837875,-483.65788343,0.00056398,31]
[321198233,1711975838097,-16.34211657,0.00056398,31]
[321198234,1711975838107,-500.0,0.00056398,31]
[321198235,1711975838116,-151.0,0.000565,120]
[321198236,1711975838126,-151.0,0.00056506,120]
[321198237,1711975838135,-151.0,0.00056889,120]
[321198238,1711975838145,-151.0,0.00056889,120]
[321198239,1711975838154,-328.53189063,0.00056923,2]
[321198240,1711975838163,-1000.0,0.00056923,2]
[321198241,1711975838172,-1000.0,0.00056923,2]
[321198242,1711975838181,-1000.0,0.00056923,2]
[321198243,1711975838190,-39.1259928,0.00056923,2]
[321198319,1711975839832,-960.8740072,0.00056923,2]
[321198320,1711975839844,-1000.0,0.00056923,2]
[321198321,1711975839857,-1000.0,0.00056923,2]
[321198322,1711975839870,-1000.0,0.00056923,2]
[321198323,1711975839881,-1000.0,0.00056923,2]
[321198324,1711975839894,-1000.0,0.00056923,2]
[321198325,1711975839907,-1000.0,0.00056923,2]
[321198326,1711975839918,-1000.0,0.00056923,2]
[321198327,1711975839928,-1031.29625762,0.00056923,2]
[321198328,1711975839938,-2500.0,0.00056923,120]
[321198329,1711975839949,-1752.99000032,0.00056923,120]
[321198330,1711975839960,-500.0,0.00056923,2]
[321198331,1711975839971,-255.83591984,0.00056923,2]
[321198332,1711975839982,-250.88996858,0.00056923,2]
[321198333,1711975839992,-250.88996858,0.00056923,2]
[321198334,1711975840003,-85598.94545361,0.00056924,36]
[321198335,1711975840013,-186783.06810752,0.00056924,4]
[321198336,1711975840350,-288.11086209,0.00056924,4]
[321198337,1711975840365,-355.87,0.00056924,4]
[321198338,1711975840470,-290.4,0.00056924,4]
[321198344,1711975840814,-918048.17602838,0.00056924,4]
[321198366,1711975842826,-3600.68,0.00055934,2]
[321198367,1711975842838,-160.82057,0.00056916,82]
[321198368,1711975842849,-497.0,0.00056924,25]
[321198369,1711975842860,-2410.83890842,0.00056924,4]
[321198370,1711975842874,-6865.26168164,0.00056924,4]
[321198371,1711975842886,-3139.90854857,0.00056924,4]
[321198372,1711975842899,-729.6092422,0.00056924,4]
[321198373,1711975842993,-336.94750551,0.00056924,4]
[321198374,1711975843189,-1966.3,0.00056924,4]
[321198417,1711975845904,-193.53242783,0.00056356,120]
[321198418,1711975845915,-155.0,0.00056923,4]
[321198419,1711975845926,-151.46757217,0.00056924,4]
[321198420,1711975845940,-34959.41209834,0.00056924,4]
[321198421,1711975845965,-387.53754655,0.00056924,4]
[321198422,1711975845977,-774.57418602,0.00056924,4]
[321198423,1711975845990,-279.192,0.00056924,4]
[321198424,1711975846002,-3556.27195091,0.00056924,4]
[321198425,1711975846037,-2168.76298,0.00056924,4]
[321198426,1711975846192,-1734.26210492,0.00056924,4]
[321198542,1711975883159,47948.75708156,0.0004,30]
[321198543,1711975883184,104896.99785319,0.0004,30]
[321198544,1711975886046,155.9,0.00037808,2]
[321198545,1711975893838,17829.77028884,0.00043258,4]
[321198546,1711975901138,801.28565514,0.00043258,4]
[321198547,1711975924642,1200.74179374,0.00043258,4]
[321198548,1711975956405,3000.0,0.00043258,4]
[321198549,1711976035836,390946.82364663,0.00025,2]
[321198550,1711976041993,150.0,0.00043258,5]
[321198551,1711976042023,150.0,0.00043258,4]
[321198552,1711976071013,1082.6004131,0.00043259,30]
[321198554,1711976073685,150.999999,0.00031,2]
[321198555,1711976140289,3204.3543578,0.0004328,2]
[321198557,1711976171132,1607.93613744,0.0004328,4]
[321198561,1711976384296,153.65,0.00037808,2]
[321198569,1711976592351,-605.0,0.00051,120]
[321198581,1711976853811,156.27,0.00037808,2]
[321198603,1711977031875,-3204.3543578,0.00043179,2]
[321198605,1711977031883,-159.53791118,0.00043181,2]
[321198607,1711977031892,-10714.80781921,0.00043279,2]
[321198629,1711977038223,-868.87249805,0.00043279,2]
[321198630,1711977038280,-19710.93876756,0.00043279,2]
[321198631,1711977038289,-1814.8878875,0.00043281,2]
[321198632,1711977038298,-1572.75867537,0.00043281,2]
[321198633,1711977038307,-221.20888971,0.00043281,2]
[321198634,1711977038315,-368.1910996,0.00043281,2]
[321198635,1711977038324,-1475.32839015,0.00043281,2]
[321198636,1711977038335,-6960.23115968,0.00043281,2]
[321198638,1711977038345,-789.62050342,0.00043281,7]
[321198640,1711977038354,-7955.28684623,0.00043281,7]
[321198642,1711977038363,-3265.4178617,0.00043281,7]
[321198644,1711977038372,-13442.74002108,0.00043281,7]
[321198646,1711977038381,-153.65,0.00045437,2]
[321198648,1711977038390,-159.53791114,0.00046592,2]
[321198650,1711977038399,-159.53791114,0.00050003,2]
[321198652,1711977038409,-255.24588134,0.00051,120]
[321198654,1711977038418,-310.55,0.00051,2]
[321198655,1711977038428,-1337.0,0.00051,30]
[321198657,1711977038437,-150.99,0.00051,2]
[321198659,1711977038446,-1375.09854435,0.00051118,15]
[321198662,1711977038455,-685.66989825,0.0005255,11]
[321198664,1711977038463,-445.43,0.00052832,2]
[321198666,1711977038472,-153.65,0.00053066,2]
[321198668,1711977038480,-159.53791114,0.00053413,2]
[321198670,1711977038489,-154.43,0.000537,7]
[321198672,1711977038498,-153.74,0.000537,7]
[321198674,1711977038507,-1000.55,0.00053895,120]
[321198676,1711977038516,-153.09,0.00053958,120]
[321198678,1711977038525,-1340.14,0.00054179,30]
[321198680,1711977038535,-23900.0,0.00054213,2]
[321198682,1711977038543,-1653.15,0.00054224,2]
[321198684,1711977038552,-200.0,0.00054245,2]
[321198686,1711977038561,-150.0,0.00054245,2]
[321198688,1711977038570,-667.63,0.00054323,120]
[321198690,1711977038581,-179.0,0.00054323,2]
[321198691,1711977038590,-200.0,0.00054336,30]
[321198694,1711977038599,-664.73,0.00054362,2]
[321198696,1711977038612,-777.64,0.00054413,2]
[321198697,1711977038621,-250.0,0.00054439,120]
[321198699,1711977038630,-840.58,0.00054447,2]
[321198701,1711977038640,-500.0,0.00054451,2]
[321198703,1711977038650,-1336.58,0.00054461,2]
[321198705,1711977038659,-498.19,0.00054465,120]
[321198707,1711977038668,-718.63726953,0.000545,2]
[321198709,1711977038678,-191.37,0.00054502,10]
[321198711,1711977038687,-500.0,0.00054516,2]
[321198713,1711977038697,-500.0,0.00054592,2]
[321198715,1711977038706,-1538.26,0.0005475,2]
[321198718,1711977038716,-277.18,0.0005475,2]
[321198719,1711977038725,-250.0,0.0005475,120]
[321198722,1711977038734,-200.0,0.00054795,120]
[321198724,1711977038743,-210.51,0.00054847,2]
[321198726,1711977038753,-1306.17336446,0.000549,30]
[321198728,1711977038762,-962.59385144,0.00055,4]
[321198730,1711977038771,-445.43,0.00055096,2]
[321198731,1711977038781,-1000.0,0.00055289,120]
[321198733,1711977038790,-173.21,0.0005541,120]
[321198735,1711977038799,-200.0,0.00055699,120]
[321198738,1711977038808,-2000.0,0.00056,120]
[321198740,1711977038818,-1000.12345678,0.00056,120]
[321198741,1711977038827,-5462.929,0.00056134,120]
[321198743,1711977038837,-489.08675,0.0005635,79]
[321198745,1711977038846,-155.41102224,0.00056354,4]
[321198748,1711977038856,-174.17918504,0.00056356,120]
[321198749,1711977038865,-494.0,0.00056399,120]
[321198751,1711977038874,-500.0,0.00056499,120]
[321198754,1711977038885,-8682.26119074,0.00056541,2]
[321198756,1711977038896,-2623.54675697,0.00056541,2]
[321198758,1711977038905,-489.08676,0.0005655,80]
[321198760,1711977038914,-400.0,0.000566,20]
[321198762,1711977038923,-200.0,0.0005663,120]
[321198764,1711977038932,-345.57956373,0.00056639,8]
[321198766,1711977038942,-500.0,0.00056641,2]
[321198768,1711977038951,-500.0,0.00056641,2]
[321198769,1711977038960,-500.0,0.00056641,2]
[321198771,1711977038969,-409.2031,0.00056641,2]
[321198773,1711977038978,-1000.0,0.00056641,2]
[321198776,1711977038988,-1000.0,0.00056641,2]
[321198778,1711977038997,-1000.0,0.00056641,2]
[321198779,1711977039007,-1000.0,0.00056641,2]
[321198781,1711977039016,-1000.0,0.00056641,2]
[321198783,1711977039025,-1000.0,0.00056641,2]
[321198785,1711977039034,-1000.0,0.00056641,2]
[321198788,1711977039044,-1000.0,0.00056641,2]
[321198790,1711977039053,-933.46381325,0.00056641,2]
[321198823,1711977040114,-66.53618675,0.00056641,2]
[321198825,1711977040124,-1000.0,0.00056641,2]
[321198827,1711977040133,-683.93881325,0.00056641,2]
[321198838,1711977040233,-316.06118675,0.00056641,2]
[321198840,1711977040242,-2.19187755,0.00056641,2]
[321198880,1711977176619,350.0,0.00033,3]
[321198881,1711977177741,400.0,0.00035,3]
[321198882,1711977884380,156.36,0.00037808,2]
[321198883,1711978165189,-2630.1675,0.00041698,2]
[321198888,1711978232153,-574.1868578,0.00041698,2]
[321198889,1711978232164,-598.12679499,0.00041699,4]
[321198890,1711978232173,-317.0,0.000417,2]
[321198891,1711978232183,-538.43,0.00052713,2]
[321198892,1711978232193,-151.67,0.00054343,120]
[321198893,1711978232202,-153.75,0.000544,8]
[321198894,1711978232211,-3266.14,0.00054576,2]
[321198895,1711978232221,-250.0,0.00054602,120]
[321198896,1711978232230,-200.0,0.00054604,30]
[321198897,1711978232240,-1601.24737547,0.00054612,2]
[321198927,1711978238442,-672.98,0.00054532,2]
[321198928,1711978238453,-9396.84262453,0.00054612,2]
[321198929,1711978238462,-150.0,0.00054616,2]
[321198930,1711978238470,-250.0,0.00054616,120]
[321198931,1711978238479,-500.0,0.00054645,2]
[321198932,1711978238488,-1828.26,0.00054645,2]
[321198933,1711978238497,-173.21,0.00054646,120]
[321198934,1711978238506,-500.0,0.00054649,2]
[321198935,1711978238516,-556.35,0.00054649,120]
[321198936,1711978238525,-159.48,0.0005465,10]
[321198937,1711978238534,-797.4,0.0005465,10]
[321198938,1711978238543,-2165.75727034,0.00054656,2]
[321198939,1711978238554,-18952.09250204,0.00054656,2]
[321198967,1711978240346,-1067.98742376,0.00041698,30]
[321198968,1711978240357,-3496.95227218,0.00041698,30]
[321198970,1711978243303,-8034.82847838,0.00041698,30]
[321198971,1711978243313,-15131.48345907,0.00054495,2]
[321198972,1711978243437,-12794.01766969,0.00054495,2]
[321199007,1711978246278,-767.26060791,0.00051921,2]
[321199008,1711978246383,-1318.00000001,0.00051921,2]
[321199075,1711978404184,155.55,0.00037808,2]
[321199076,1711978980124,350.0,0.00033,3]
[321199080,1711979240542,-150.0,0.00041699,4]
[321199081,1711979331077,2129.92159387,0.00043273,120]
[321199086,1711979432388,-37.63186394,0.00041699,4]
[321199087,1711979432398,-164.0,0.000417,2]
[321199088,1711979432407,-156.67906274,0.00043173,2]
[321199089,1711979432417,-3204.3543578,0.00043272,2]
[321199090,1711979432429,-534.604458,0.00043273,3]
[321199091,1711979432438,-156.67906264,0.00043925,2]
[321199092,1711979432448,-156.67906264,0.00044676,2]
[321199093,1711979432458,-156.67906264,0.00045428,2]
[321199094,1711979432468,-156.67906264,0.00046179,2]
[321199095,1711979432478,-156.67906264,0.00046931,2]
[321199096,1711979432487,-156.67906264,0.00047682,2]
[321199097,1711979432497,-156.67906264,0.00048434,2]
[321199098,1711979432506,-156.67906264,0.00049185,2]
[321199099,1711979432517,-156.67906264,0.00049937,2]
[321199100,1711979432526,-5469.22648392,0.00049997,2]
[321199101,1711979432537,-1749.33395823,0.00049998,2]
[321199102,1711979432563,-508.062287,0.00049998,2]
[321199103,1711979432575,-550.0,0.00049998,2]
[321199104,1711979432605,-306.20467746,0.00049998,2]
[321199105,1711979432617,-3499.49844,0.00049998,2]
[321199110,1711979432799,-13203.12767505,0.00049998,2]
[321199225,1711979438445,-406.37439759,0.00049998,2]
[321199241,1711979440733,-359.31525189,0.00049998,2]
[321199247,1711979443451,-5496.93255013,0.00049998,2]
[321199248,1711979443460,-9634.55090894,0.00049998,2]
[321199249,1711979443520,-4932.89085978,0.00049998,2]
[321199251,1711979446663,-1217.14,0.00049998,2]
[321199258,1711979494840,500.0,0.0002,5]
[321199259,1711979509511,24592.3090448,0.0002,2]
[321199260,1711979516955,9000.0,0.0003999,2]
[321199261,1711979529516,24592.3090448,0.0002,2]
[321199262,1711979547523,6820.03392231,0.0002,2]
[321199263,1711979625662,7885.24290155,0.00037,4]
[321199264,1711979642148,18190.72204597,0.0002975,2]
[321199265,1711979648868,1505.760539,0.0003,2]
[321199266,1711979659180,762.35044564,0.0003,2]
[321199267,1711979665598,374.15651747,0.0003,2]
[321199268,1711979671114,514.3970791,0.0003,2]
[321199269,1711979672801,72223.17800823,0.000299,2]
[321199270,1711979673092,346.351733,0.0003,2]
[321199272,1711979674737,9366.06204446,0.0003,2]
[321199278,1711979677073,315.42785484,0.0003,2]
[321199279,1711979678503,1697.59741093,0.0003,2]
[321199280,1711979704126,154.55,0.00037808,2]
[321199281,1711980549176,-187.63186394,0.00043998,4]
[321199282,1711980549196,-139.71350903,0.00043999,2]
[321199302,1711980631480,-484.26725721,0.00043999,2]
[321199305,1711980631494,-730.35536255,0.00043999,2]
[321199307,1711980631506,-1850.01822901,0.00043999,2]
[321199309,1711980631515,-3638.0,0.00044,2]
[321199311,1711980631525,-154.55,0.00044007,2]
[321199313,1711980631534,-4757.43177099,0.00046755,2]
[321199316,1711980631550,-10330.72911579,0.00046755,2]
[321199318,1711980631561,-5323.16275071,0.00046755,2]
[321199320,1711980631573,-1131.55201421,0.00046755,2]
[321199322,1711980631660,-1272.22164415,0.00046755,2]
[321199323,1711980631674,-1667.42123794,0.00046755,2]
[321199324,1711980631717,-522.6,0.00046755,2]
[321199325,1711980631785,-562.43544538,0.00046755,2]
[321199326,1711980631797,-1146.64309624,0.00046755,2]
[321199327,1711980631842,-17534.74268587,0.00046755,2]
[321199346,1711980637463,-1601.75404407,0.00046755,2]
[321199347,1711980637475,-350.71279313,0.00046755,2]
[321199348,1711980637582,-2342.91088904,0.00046755,2]
[321199349,1711980637696,-58478.60984578,0.00046755,2]
[321199350,1711980637705,-658.13,0.00046787,2]
[321199351,1711980637715,-2955.10188,0.00047945,17]
[321199352,1711980637724,-250.0,0.00048508,120]
[321199353,1711980637733,-151.58,0.0004852,2]
[321199354,1711980637743,-500.0,0.00048609,2]
[321199355,1711980637752,-200.0,0.00048636,2]
[321199356,1711980637762,-499.99,0.00048636,2]
[321199357,1711980637771,-1000.0,0.0004864,2]
[321199358,1711980637780,-1378.04,0.0004864,2]
[321199359,1711980637789,-2242.63,0.00048648,2]
[321199360,1711980637799,-156.66318022,0.00048652,2]
[321199361,1711980637808,-595.09,0.00048657,2]
[321199362,1711980637817,-155.0,0.00048682,4]
[321199363,1711980637826,-463.62,0.00048683,120]
[321199364,1711980637835,-160.545094,0.00048684,2]
[321199365,1711980637851,-1007.4,0.00048684,2]
[321199366,1711980637863,-22732.054906,0.00048684,2]
[321199367,1711980637872,-250.0,0.00048695,120]
[321199368,1711980637881,-304.68,0.000487,10]
[321199369,1711980637891,-167.95,0.00048705,15]
[321199370,1711980637902,-9236.32342272,0.0004871,2]
[321199371,1711980637911,-7948.66,0.0004872,7]
[321199372,1711980637920,-168.67,0.00048749,2]
[321199373,1711980637929,-1682.25,0.00048749,120]
[321199374,1711980637939,-407.67,0.00049004,2]
[321199375,1711980637948,-658.13,0.00049051,2]
[321199376,1711980637957,-3334.78,0.00049089,2]
[321199377,1711980637966,-328.95,0.00049121,2]
[321199378,1711980637975,-328.95,0.00049133,2]
[321199379,1711980637984,-407.67,0.00049139,2]
[321199380,1711980637994,-328.95,0.00049146,2]
[321199381,1711980638003,-328.95,0.00049159,2]
[321199382,1711980638013,-328.95,0.00049172,2]
[321199383,1711980638022,-328.95,0.00049185,2]
[321199384,1711980638032,-328.95,0.00049198,2]
[321199385,1711980638041,-328.95,0.00049211,2]
[321199386,1711980638051,-328.95,0.00049224,2]
[321199387,1711980638060,-328.95,0.00049237,2]
[321199388,1711980638069,-328.95,0.0004925,2]
[321199390,1711980638078,-328.95,0.00049263,2]
[321199391,1711980638087,-407.67,0.00049273,2]
[321199393,1711980638097,-328.95,0.00049276,2]
[321199396,1711980638106,-328.95,0.00049289,2]
[321199398,1711980638115,-328.95,0.00049302,2]
[321199399,1711980638124,-328.95,0.00049315,2]
[321199400,1711980638134,-328.95,0.00049327,2]
[321199401,1711980638143,-328.95,0.0004934,2]
[321199402,1711980638154,-328.95,0.00049353,2]
[321199403,1711980638163,-328.95,0.00049366,2]
[321199404,1711980638172,-407.67,0.00049408,2]
[321199405,1711980638182,-362.38309465,0.00049497,4]
[321199406,1711980638191,-251.36632371,0.00049498,4]
[321199407,1711980638201,-156.66318014,0.00049513,2]
[321199408,1711980638210,-407.67,0.00049542,2]
[321199409,1711980638219,-407.67,0.00049677,2]
[321199410,1711980638228,-407.67,0.00049811,2]
[321199411,1711980638238,-523.26,0.00049899,31]
[321199412,1711980638247,-500.0,0.00049899,120]
[321199413,1711980638256,-173.5832695,0.00049899,120]
[321199414,1711980638265,-7217.79057817,0.000499,2]
[321199415,1711980638275,-151.0,0.000499,120]
[321199416,1711980638285,-151.0,0.000499,120]
[321199417,1711980638294,-151.0,0.000499,120]
[321199418,1711980638304,-349.100771,0.000499,120]
[321199419,1711980638313,-407.67,0.00049945,2]
[321199420,1711980638322,-151.0,0.00049988,120]
[321199421,1711980638332,-882.14205019,0.00049996,40]
[321199422,1711980638341,-791.14147327,0.00049997,10]
[321199423,1711980638361,-10294.26746863,0.00049998,2]
[321199424,1711980638371,-1209.07760925,0.00049998,4]
[321199425,1711980638380,-155.85858285,0.00049998,4]
[321199426,1711980638389,-475.09329706,0.00049998,4]
[321199427,1711980638399,-421.32052805,0.00049998,4]
[321199428,1711980638409,-22322.85684776,0.00049998,4]
[321199429,1711980638418,-237.25916695,0.00049998,2]
[321199430,1711980638427,-166.90550138,0.00049998,4]
[321199431,1711980638437,-601.81484238,0.00049998,4]
[321199432,1711980638446,-151.0,0.00049998,120]
[321199433,1711980638455,-151.0,0.00049998,30]
[321199434,1711980638465,-151.0,0.00049998,30]
[321199435,1711980638474,-155.301661,0.00049998,45]
[321199436,1711980638483,-179.800726,0.00049998,120]
[321199437,1711980638493,-179.800726,0.00049998,120]
[321199438,1711980638502,-151.0,0.00049998,120]
[321199439,1711980638511,-151.0,0.00049998,120]
[321199440,1711980638521,-151.0,0.00049998,120]
[321199441,1711980638531,-151.0,0.00049998,120]
[321199442,1711980638540,-296.549551,0.00049998,120]
[321199443,1711980638549,-517.68127,0.00049998,49]
[321199444,1711980638558,-151.0,0.00049998,120]
[321199445,1711980638568,-151.0,0.00049998,120]
[321199446,1711980638577,-151.0,0.00049998,120]
[321199447,1711980638588,-1996.57853264,0.00049999,4]
[321199448,1711980638597,-43136.0,0.0005,2]
[321199449,1711980638606,-151.0,0.0005,60]
[321199450,1711980638615,-151.0,0.0005,120]
[321199451,1711980638624,-151.0,0.0005,30]
[321199452,1711980638633,-179.800726,0.0005,120]
[321199453,1711980638643,-179.800726,0.0005,120]
[321199454,1711980638652,-151.0,0.0005,120]
[321199455,1711980638662,-151.0,0.0005,120]
[321199456,1711980638672,-151.0,0.0005,120]
[321199457,1711980638685,-407.67,0.0005008,2]
[321199458,1711980638694,-154.55,0.00050205,2]
[321199459,1711980638703,-407.67,0.00050214,2]
[321199460,1711980638712,-151.0,0.00050255,120]
[321199461,1711980638722,-151.0,0.00050255,30]
[321199462,1711980638731,-179.800726,0.00050255,120]
[321199463,1711980638740,-179.800726,0.00050255,120]
[321199464,1711980638751,-151.0,0.00050255,120]
[321199465,1711980638759,-151.0,0.00050255,120]
[321199466,1711980638769,-152.64640171,0.00050255,14]
[321199467,1711980638779,-332.13,0.00050345,2]
[321199468,1711980638788,-407.67,0.00050349,2]
[321199469,1711980638797,-1000.0,0.00050354,60]
[321199470,1711980638807,-206.0,0.00050355,2]
[321199471,1711980638816,-151.0,0.00050355,120]
[321199472,1711980638825,-151.0,0.00050355,30]
[321199473,1711980638835,-151.0,0.00050355,30]
[321199474,1711980638844,-179.800726,0.00050355,120]
[321199475,1711980638853,-179.800726,0.00050355,120]
[321199476,1711980638863,-179.800726,0.00050355,120]
[321199477,1711980638872,-179.800726,0.00050355,120]
[321199478,1711980638882,-151.0,0.00050355,120]
[321199479,1711980638891,-151.0,0.00050355,120]
[321199480,1711980638901,-151.0,0.00050355,120]
[321199481,1711980638910,-237.562511,0.00050355,120]
[321199482,1711980638919,-151.0,0.00050355,120]
[321199483,1711980638929,-151.0,0.00050355,120]
[321199484,1711980638939,-156.66318014,0.00050374,2]
[321199485,1711980638948,-151.0,0.00050399,30]
[321199486,1711980638958,-179.800726,0.00050399,120]
[321199487,1711980638967,-179.800726,0.00050399,120]
[321199488,1711980638976,-151.0,0.00050399,120]
[321199489,1711980638985,-263.184191,0.00050399,120]
[321199490,1711980638994,-407.67,0.00050483,2]
[321199491,1711980639003,-407.67,0.00050617,2]
[321199492,1711980639012,-407.67,0.00050752,2]
[321199493,1711980639021,-407.67,0.00050886,2]
[321199494,1711980639030,-407.67,0.00051021,2]
[321199495,1711980639039,-7217.79057814,0.00051122,2]
[321199496,1711980639048,-407.67,0.00051155,2]
[321199497,1711980639057,-489.43,0.00051176,64]
[321199498,1711980639066,-156.66318014,0.00051235,2]
[321199499,1711980639075,-407.67,0.00051289,2]
[321199500,1711980639084,-658.13,0.00051315,2]
[321199501,1711980639093,-179.800726,0.0005137,120]
[321199502,1711980639102,-179.800726,0.0005137,120]
[321199503,1711980639112,-2242.63,0.00051387,2]
[321199504,1711980639122,-407.67,0.00051424,2]
[321199505,1711980639131,-151.0,0.00051479,30]
[321199506,1711980639141,-179.800726,0.00051479,120]
[321199507,1711980639151,-179.800726,0.00051479,120]
[321199508,1711980639161,-151.0,0.00051479,120]